bitfinex/quotes_ETHUSD_20241225
["timestamp","ask_amount","ask_price","bid_price","bid_amount"]
[1735126965501,3.20074192,3507.6,3507.1,0.005]
[1735126965827,0.05880993,3507.6,3507.1,0.005]
[1735126966021,2.8508,3507.8,3507.1,0.005]
[1735126966186,0.05866539,3507.7,3507.1,0.005]
[1735126966392,0.05866539,3507.7,3507.2,0.782]
[1735126966593,3.0,3507.9,3507.2,0.782]
[1735126966793,0.0586708,3507.8,3507.2,0.782]
[1735126967418,2.85063,3508.0,3507.2,0.782]
[1735126967604,0.05866499,3507.9,3507.2,0.782]
[1735126968187,2.85077,3507.9,3507.2,0.782]
[1735126968428,0.05842394,3507.8,3507.2,0.782]
[1735126968728,1.07531939,3507.7,3507.1,0.005]
[1735126968900,2.85122,3507.3,3507.1,0.005]
[1735126969105,0.05844118,3507.6,3507.1,0.005]
[1735126969301,0.05841953,3507.2,3507.1,0.005]
[1735126969509,2.85105,3507.5,3507.1,0.005]
[1735126969811,0.7844,3507.6,3507.1,0.005]
[1735126970017,2.85122,3507.3,3507.1,0.005]
[1735126970225,0.0581692,3507.2,3507.1,0.005]
[1735126971008,0.363526,3507.5,3507.1,0.005]
[1735126971340,2.90935519,3507.4,3507.1,0.005]
[1735126971869,0.05824519,3507.4,3507.1,0.005]
[1735126972021,0.40042231,3507.4,3507.1,0.005]
[1735126972201,0.05824519,3507.4,3507.1,0.005]
[1735126972403,3.0,3507.8,3507.1,0.005]
[1735126972647,0.05826143,3507.7,3507.1,0.005]
[1735126973719,2.85105,3507.5,3507.1,0.005]
[1735126974268,0.05824519,3507.4,3507.1,0.005]
[1735126975406,0.34917471,3507.4,3507.1,0.005]
[1735126976783,0.05824519,3507.4,3507.1,0.005]
[1735126977288,0.05819488,3507.3,3507.2,0.7859]
[1735126977788,3.0,3507.6,3507.2,0.7859]
[1735126977928,0.05819488,3507.3,3507.2,0.7859]
[1735126978128,3.0,3507.6,3507.2,0.7859]
[1735126978351,0.05819488,3507.3,3507.2,0.7859]
[1735126978541,3.663529,3507.6,3507.2,0.7859]
[1735126978751,0.05819488,3507.3,3507.2,0.7859]
[1735126978947,3.663529,3507.6,3507.2,0.7859]
[1735126979151,0.05819488,3507.3,3507.2,0.7859]
[1735126979359,3.663529,3507.6,3507.2,0.7859]
[1735126979962,0.05820191,3507.5,3507.2,0.7859]
[1735126980150,0.715464,3507.5,3507.2,0.7859]
[1735126981231,3.05820191,3507.5,3507.2,0.7859]
[1735126981426,0.05820191,3507.5,3507.2,0.7859]
[1735126981656,3.42350157,3508.1,3507.2,0.7859]
[1735126981657,2.85057,3508.1,3507.2,0.7859]
[1735126981968,0.05818528,3507.4,3507.3,2.85119]
[1735126982152,1.17944479,3508.6,3507.4,0.7859]
[1735126982340,1.17944479,3508.6,3507.6,0.7859]
[1735126982540,1.17944479,3508.6,3507.7,0.7859]
[1735126982541,2.9046149,3508.5,3507.7,0.7859]
[1735126982990,0.0543949,3508.5,3507.7,0.7859]
[1735126983200,0.0543949,3508.5,3507.7,3.63675]
[1735126983403,0.0543949,3508.5,3508.0,0.7859]
[1735126983690,0.0543949,3508.5,3508.4,0.7859]
[1735126984205,0.0543949,3508.5,3508.4,3.66470124]
[1735126984495,1.17944479,3509.3,3508.9,0.8049]
[1735126984989,0.05491435,3509.2,3508.9,0.8049]
[1735126985288,1.17944479,3509.3,3508.9,0.8049]
[1735126985492,0.05495282,3509.1,3508.9,0.8049]
[1735126985690,2.84923,3509.8,3508.9,0.8049]
[1735126985874,0.05547448,3509.0,3508.9,0.8049]
[1735126986074,2.84923,3509.8,3508.9,0.8049]
[1735126986480,0.05551233,3509.7,3508.9,0.8049]
[1735126986878,2.90477233,3509.7,3508.9,0.8049]
[1735126987064,3.8112,3509.6,3507.7,1.18209751]
[1735126987267,2.84958,3509.3,3507.8,0.32402662]
[1735126987474,2.84958,3509.3,3507.9,0.8049]
[1735126987661,0.05566783,3509.2,3507.9,0.8049]
[1735126988394,0.05566783,3509.2,3507.9,3.6556]
[1735126988566,0.38667123,3509.5,3507.9,3.6556]
[1735126988567,2.84984,3509.0,3507.9,3.6556]
[1735126988766,3.134874,3508.9,3507.9,3.6556]
[1735126988994,0.05565161,3508.9,3507.9,0.8049]
[1735126989197,2.84997,3508.8,3507.9,0.8049]
[1735126989368,0.8112,3508.9,3507.9,0.8049]
[1735126989571,0.05564079,3508.7,3507.9,0.8049]
[1735126989771,0.0556462,3508.8,3507.9,0.8049]
[1735126990080,0.05564079,3508.7,3507.9,0.8049]
[1735126990596,2.90570079,3508.7,3507.9,0.8049]
[1735126991582,0.05564079,3508.7,3507.9,0.8049]
[1735126993103,2.90570079,3508.7,3507.9,0.8049]
[1735126994469,0.8112,3508.6,3507.4,3.65599]
[1735126994674,0.8112,3508.6,3507.4,1.170999]
[1735126994897,0.0550956,3508.5,3507.3,0.55]
[1735126995212,0.0550956,3508.5,3507.8,0.8049]
[1735126995370,0.8112,3508.7,3506.7,1.98699751]
[1735126995574,2.85055,3508.1,3507.2,0.8049]
[1735126995816,3.14111402,3508.1,3507.2,0.8049]
[1735126996013,0.05496253,3508.0,3507.2,0.8049]
[1735126997570,2.85071,3507.9,3507.2,0.8049]
[1735126997767,3.8027,3507.8,3507.1,0.005]
[1735126997967,2.85127,3507.2,3507.1,0.005]
[1735126998395,2.90624331,3507.2,3507.1,0.005]
[1735127000780,0.05497331,3507.2,3507.1,0.005]
[1735127000983,2.85111,3507.4,3507.1,0.005]
[1735127001177,3.60875916,3507.3,3507.1,0.005]
[1735127001608,3.65397,3507.2,3507.1,0.005]
[1735127001814,3.70844982,3507.2,3507.1,0.005]
[1735127002121,0.85717982,3507.2,3507.1,0.005]
[1735127002782,6.70844982,3507.2,3507.1,0.005]
[1735127002982,7.73470835,3507.2,3507.1,0.005]
[1735127006935,4.08073835,3507.2,3507.1,0.005]
[1735127007079,6.93200835,3507.2,3507.1,0.005]
[1735127013501,2.85229,3506.0,3505.5,0.7704]
[1735127013834,2.90591758,3505.9,3505.5,0.7704]
[1735127014033,0.05358758,3505.9,3505.5,0.7704]
[1735127014235,0.29057776,3505.9,3505.5,0.005]
[1735127014435,2.8525,3505.7,3505.5,0.005]
[1735127014639,0.05352022,3505.6,3505.5,0.005]
[1735127014841,2.85257,3505.6,3505.5,0.005]
[1735127015143,2.90609022,3505.6,3505.5,0.005]
[1735127015335,3.19669924,3505.6,3505.5,0.005]
[1735127015544,3.95509924,3505.6,3505.5,0.005]
[1735127015867,3.19669924,3505.6,3505.5,0.005]
[1735127016094,0.05352022,3505.6,3505.5,0.005]
[1735127016527,2.8525,3505.7,3505.5,0.005]
[1735127016728,0.05294657,3505.6,3505.5,0.005]
[1735127017453,2.85235,3505.9,3505.5,0.005]
[1735127017761,0.05295741,3505.8,3505.5,0.7704]
[1735127020841,2.85242,3505.8,3505.5,0.7704]
[1735127021167,0.05288459,3505.7,3505.5,0.005]
[1735127021566,3.137662,3505.8,3505.5,0.005]
[1735127022070,0.05288459,3505.7,3505.5,0.005]
[1735127022256,3.137662,3505.8,3505.5,0.005]
[1735127022439,0.05288459,3505.7,3505.5,0.005]
[1735127022644,3.137662,3505.8,3505.5,0.005]
[1735127022970,0.05288459,3505.7,3505.5,0.005]
[1735127023380,5.85201,3506.3,3505.5,0.005]
[1735127023549,0.0528848,3505.6,3505.5,0.005]
[1735127024090,0.7584,3506.5,3505.5,0.7704]
[1735127024297,0.0528848,3505.6,3505.5,0.7704]
[1735127024588,2.85213,3506.2,3505.5,0.7704]
[1735127024876,0.285213,3506.1,3505.5,0.7704]
[1735127025049,0.05290648,3506.0,3505.5,0.7704]
[1735127026886,3.0,3506.3,3505.5,0.7704]
[1735127027071,0.05302965,3506.2,3505.5,0.7704]
[1735127027457,3.05302965,3506.2,3505.5,0.7704]
[1735127027652,3.71937662,3506.2,3505.5,0.7704]
[1735127028564,0.71937662,3506.2,3505.5,0.7704]
[1735127028880,0.05302965,3506.2,3505.5,0.7704]
[1735127029094,0.7517,3506.1,3505.5,0.005]
[1735127029386,2.85257,3505.6,3505.5,0.005]
[1735127029556,3.42306,3505.6,3505.5,0.005]
[1735127029760,3.4755584,3505.6,3505.5,0.005]
[1735127032963,0.0524984,3505.6,3505.5,0.005]
[1735127033365,3.0,3505.8,3505.5,0.005]
[1735127033576,0.05229249,3505.6,3505.5,0.005]
[1735127033773,3.0,3505.8,3505.5,0.005]
[1735127034294,0.05234284,3505.7,3505.5,0.005]
[1735127034500,3.0,3505.8,3505.5,0.005]
[1735127034682,0.05233742,3505.6,3505.5,0.005]
[1735127034879,3.0,3505.8,3505.5,0.005]
[1735127035084,0.05233031,3505.7,3505.5,0.005]
[1735127035263,3.0,3505.8,3505.5,0.005]
[1735127035587,0.05231585,3505.7,3505.5,0.005]
[1735127035980,3.0,3505.8,3505.5,0.005]
[1735127036595,0.05231585,3505.7,3505.5,0.005]
[1735127036955,3.0,3505.8,3505.5,0.005]
[1735127037155,0.05231043,3505.6,3505.5,0.005]
[1735127037391,3.0,3505.8,3505.5,0.005]
[1735127037697,3.660411,3505.8,3505.5,0.005]
[1735127037895,0.05231585,3505.7,3505.5,0.005]
[1735127038103,3.660411,3505.8,3505.5,0.005]
[1735127038295,0.05231585,3505.7,3505.5,0.005]
[1735127038501,3.660411,3505.8,3505.5,0.005]
[1735127038660,0.05231043,3505.6,3505.5,0.005]
[1735127038998,3.660411,3505.8,3505.5,0.005]
[1735127039192,0.05231043,3505.6,3505.5,0.005]
[1735127039393,3.660411,3505.8,3505.5,0.005]
[1735127039595,0.05231043,3505.6,3505.5,0.005]
[1735127039774,2.85257,3505.6,3505.5,0.005]
[1735127040096,2.90488043,3505.6,3505.5,0.005]
[1735127040796,0.05231043,3505.6,3505.5,0.005]
[1735127041194,2.85252,3505.7,3505.5,0.005]
[1735127041401,0.05231043,3505.6,3505.5,0.005]
[1735127042457,6.70938043,3505.6,3505.5,0.005]
[1735127042781,6.70938043,3505.6,3505.5,1e-05]
[1735127043992,8.46607741,3505.6,3505.5,1e-05]
[1735127045198,7.28663262,3505.6,3505.5,1e-05]
[1735127045496,3.0,3505.5,3505.2,0.00421]
[1735127045676,6.65732,3505.3,3505.2,0.00421]
[1735127045869,6.70891112,3505.3,3505.2,0.00421]
[1735127046207,2.85362,3504.4,3503.5,1.18209751]
[1735127046508,2.85362,3504.4,3503.2,2.36419503]
[1735127046509,0.8560369,3504.3,3503.3,0.776]
[1735127046701,3.0,3504.1,3503.3,0.776]
[1735127046998,3.0511891,3504.0,3503.2,1.18209751]
[1735127047296,2.9050791,3504.0,3503.2,1.18209751]
[1735127047499,3.0,3503.9,3503.2,1.18209751]
[1735127047664,0.85567825,3503.8,3503.2,1.18209751]
[1735127047864,0.67095683,3503.7,3503.2,1.18209751]
[1735127048102,3.0,3503.5,3503.1,0.01]
[1735127048304,2.90526115,3503.4,3503.1,0.01]
[1735127048478,0.05088115,3503.4,3503.1,0.01]
[1735127048678,5.85413,3503.7,3503.1,0.01]
[1735127049014,0.8045,3503.4,3503.1,0.01]
[1735127049327,0.8045,3503.1,3502.9,0.12849083]
[1735127049677,0.25,3502.5,3501.3,1.36840131]
[1735127049894,0.25,3502.5,3500.2,4.4343179]
[1735127049895,2.5839,3501.3,3497.3,1.41412007]
[1735127050074,0.55,3499.9,3496.8,0.25]
[1735127050269,3.25,3499.5,3497.6,0.03510339]
[1735127050602,0.14808818,3498.1,3497.6,2.8591]
[1735127050812,0.14808818,3498.1,3497.0,0.776]
[1735127050991,0.14808818,3498.1,3497.6,2.85904]
[1735127051194,0.14808818,3498.1,3497.6,0.28721475]
[1735127051455,0.14808818,3498.1,3497.5,0.01310748]
[1735127051596,12.84104502,3498.0,3497.5,0.01310748]
[1735127051794,12.88447205,3498.0,3497.5,0.01310748]
[1735127052042,12.88447205,3498.0,3496.6,0.36884955]
[1735127052241,15.74328205,3498.0,3496.6,0.36884955]
[1735127052404,3.0,3497.9,3496.7,0.32288896]
[1735127052594,3.0,3497.9,3496.1,2.86031]
[1735127052595,0.25,3496.9,3496.1,2.86031]
[1735127052791,0.25,3496.7,3496.1,2.86031]
[1735127052993,0.25,3496.0,3493.5,8.12591665]
[1735127053244,3.20022457,3497.7,3490.6,14.4257925]
[1735127053245,0.20022457,3497.7,3495.9,2.86047]
[1735127053450,9.7275452,3496.6,3496.2,2.86024]
[1735127053747,9.7275452,3496.6,3495.8,2.86057]
[1735127053748,0.12013474,3495.9,3495.8,2.86057]
[1735127054115,0.12013474,3495.9,3495.0,2.86122]
[1735127054116,0.1619605,3495.9,3495.0,2.86122]
[1735127054317,0.04182576,3495.9,3495.1,35.31421205]
[1735127054527,0.04134876,3495.8,3495.7,2.86065]
[1735127054854,12.88239378,3495.8,3495.4,2.53900951]
[1735127055151,3.97e-06,3495.7,3495.6,2.86073]
[1735127055355,2.3e-06,3495.7,3495.6,5.86073]
[1735127055650,4.97e-06,3495.7,3495.6,7.74431797]
[1735127055808,9.98046502,3495.8,3495.7,3.55]
[1735127055998,0.08046502,3495.8,3495.7,5.84628631]
[1735127056229,12.6447244,3496.4,3495.7,3.0]
[1735127056432,12.6447244,3496.4,3495.9,2.86041]
[1735127056637,12.6447244,3496.4,3495.9,2.85961]
[1735127057185,0.25,3496.2,3495.6,0.776]
[1735127057788,4.80601176,3496.3,3495.6,0.776]
[1735127057930,0.33094071,3496.1,3495.6,0.776]
[1735127058131,0.33094071,3496.1,3495.7,35.0]
[1735127058381,0.25,3495.9,3495.6,0.776]
[1735127058590,0.25,3495.9,3495.0,0.776]
[1735127058793,0.25,3495.9,3495.2,2.86104]
[1735127059090,0.1274266,3495.8,3495.3,2.86095]
[1735127059689,0.3774266,3495.8,3495.1,2.86113]
[1735127059851,0.3774266,3495.8,3495.2,0.363713]
[1735127060168,0.1274266,3495.7,3495.2,0.363713]
[1735127060684,0.1274266,3495.7,3495.2,2.86101]
[1735127060900,0.25,3496.0,3495.5,2.8608]
[1735127061105,3.87141204,3495.6,3495.5,3.4108]
[1735127061309,3.87141204,3495.6,3495.4,0.55]
[1735127061448,2.04e-06,3495.6,3495.5,3.63067]
[1735127061652,5.72564815,3495.7,3495.5,4.048737]
[1735127062484,1.15291675,3496.0,3495.9,2.86049]
[1735127062683,1.87e-06,3496.2,3496.1,3.63023]
[1735127062888,2.64705424,3496.3,3496.1,3.63023]
[1735127063063,4.43189864,3496.4,3496.3,2.86016]
[1735127063258,2.30417322,3496.6,3496.5,3.6299]
[1735127063466,2.30417322,3496.6,3496.5,4.1799]
[1735127064209,9.56185556,3497.4,3496.5,1.3199]
[1735127064505,9.56185556,3497.4,3496.5,0.7699]
[1735127064750,0.25,3497.2,3496.5,0.7699]
[1735127064958,0.25,3497.2,3496.6,0.4278999]
[1735127065101,0.37682717,3497.3,3495.8,0.55]
[1735127065303,0.12682717,3497.3,3496.0,0.55]
[1735127065635,0.12682717,3497.2,3496.2,3.44604596]
[1735127065847,0.12682717,3497.2,3497.0,2.85954]
[1735127065993,0.12682717,3497.2,3497.1,0.285954]
[1735127066455,0.57986139,3497.6,3497.1,0.285954]
[1735127066799,0.25,3497.4,3497.1,0.285954]
[1735127067041,0.25,3496.9,3494.9,10.8030618]
[1735127067259,0.25,3497.0,3495.2,2.86103]
[1735127067461,0.25,3497.1,3496.1,0.58154922]
[1735127067667,0.25,3497.1,3496.3,2.86012]
[1735127067964,0.32986139,3496.9,3496.4,2.86002]
[1735127068160,0.57986139,3496.9,3496.5,0.286002]
[1735127068360,0.57986139,3496.9,3496.2,2.8602]
[1735127068647,0.12682717,3496.8,3496.1,0.58154922]
[1735127069442,0.32986139,3496.7,3496.4,2.86005]
[1735127069651,0.32986139,3496.7,3496.5,0.341005]
[1735127069853,0.12682717,3496.6,3496.5,3.200995]
[1735127070533,0.32986139,3496.6,3496.2,0.55]
[1735127070932,0.32986139,3496.6,3496.5,2.85999]
[1735127071351,0.32986139,3496.6,3496.2,0.55]
[1735127071535,0.25,3497.1,3496.4,2.86007]
[1735127071737,0.25,3497.1,3496.5,0.341007]
[1735127072174,0.33193245,3497.0,3496.5,0.341007]
[1735127072342,0.33193245,3497.0,3496.7,2.85983]
[1735127072736,0.33193245,3497.0,3496.4,2.86]
[1735127072937,0.33193245,3497.0,3496.2,0.55]
[1735127073174,0.33193245,3496.9,3496.6,2.8599]
[1735127073479,0.33193245,3496.9,3496.6,3.14589]
[1735127074034,0.12766633,3496.8,3496.6,3.14589]
[1735127074269,0.12766633,3496.8,3496.7,3.64253]
[1735127074474,0.12766633,3496.8,3496.7,4.19253]
[1735127074739,0.17895079,3497.0,3496.9,2.85967]
[1735127074940,0.17895079,3497.0,3496.9,4.198481]
[1735127075335,0.17895079,3498.0,3496.9,1.338811]
[1735127075655,0.25,3497.8,3497.1,2.85946]
[1735127075880,0.25,3497.6,3496.9,1.37382264]
[1735127076036,0.25,3497.6,3496.9,0.58501164]
[1735127076235,0.25,3497.9,3496.9,0.58501164]
[1735127076462,0.25,3497.8,3496.9,0.58501164]
[1735127076659,0.17895079,3497.9,3497.0,0.55]
[1735127076876,0.17895079,3497.9,3497.5,2.85918]
[1735127077250,0.37917536,3497.8,3497.6,2.8591]
[1735127077574,0.25,3497.7,3497.1,0.39946016]
[1735127077790,0.42895079,3497.7,3496.7,0.7827]
[1735127077990,0.5,3497.4,3496.7,0.7827]
[1735127078191,0.25,3497.2,3496.7,3.64251]
[1735127078554,0.25,3497.1,3496.7,0.7827]
[1735127078765,0.25,3496.8,3496.1,0.7827]
[1735127078956,0.25,3496.8,3496.2,3.28224542]
[1735127079175,0.17895079,3497.0,3496.2,3.28224542]
[1735127079176,0.17895079,3497.0,3496.2,0.42200542]
[1735127079789,0.17895079,3497.0,3496.5,2.85998]
[1735127080084,0.17895079,3496.9,3496.5,2.85998]
[1735127080885,0.17895079,3496.9,3496.6,2.8599]
[1735127081061,0.5,3497.1,3496.6,2.8599]
[1735127081980,0.25,3497.3,3496.7,0.28599]
[1735127082278,0.25,3497.4,3497.2,2.85943]
[1735127082477,0.5,3497.4,3496.8,2.85975]
[1735127082680,0.25,3497.6,3496.6,0.55]
[1735127082884,0.25,3497.3,3496.9,2.85967]
[1735127083182,0.25,3497.8,3496.6,0.55]
[1735127083371,0.25,3497.6,3497.0,2.85954]
[1735127083680,0.5,3497.6,3496.6,0.55]
[1735127083856,0.5,3497.6,3497.0,2.85953]
[1735127084980,0.5,3497.6,3496.7,2.85976]
[1735127085191,0.5,3497.6,3496.6,0.55]
[1735127085392,0.25,3497.4,3496.7,2.85983]
[1735127085691,0.5,3497.4,3496.7,2.85983]
[1735127085906,0.03105086,3497.3,3496.7,2.85983]
[1735127086391,0.03105086,3497.3,3496.6,0.98327]
[1735127086590,0.03105086,3497.3,3496.7,2.85981]
[1735127086755,0.25,3497.2,3496.7,2.85981]
[1735127087153,0.5,3497.4,3496.8,2.85975]
[1735127087353,0.25,3497.4,3496.6,0.55]
[1735127087556,0.5,3497.8,3497.1,2.85944]
[1735127087795,0.5,3497.8,3497.2,2.85941]
[1735127087953,0.25,3497.5,3496.8,2.85974]
[1735127088152,0.25,3497.5,3496.9,0.55]
[1735127088377,0.25,3497.4,3496.8,3.63751112]
[1735127088579,0.25,3497.4,3496.8,0.77777112]
[1735127088857,0.25,3497.1,3496.5,1.36797116]
[1735127089572,0.25,3497.1,3496.5,4.22796116]
[1735127089767,0.25,3497.1,3496.5,0.58527116]
[1735127089995,0.25,3496.7,3496.5,0.58527116]
[1735127091597,1.1339,3496.6,3495.9,0.00286]
[1735127091801,0.25,3496.1,3495.9,0.00286]
[1735127092216,0.03068287,3496.0,3495.9,0.00286]
[1735127093081,0.25,3497.5,3496.9,2.85961]
[1735127093334,0.25,3497.5,3496.9,0.8473]
[1735127093485,0.25,3497.5,3496.9,3.70695]
[1735127094191,1.4007,3497.2,3496.9,2.85965]
[1735127094391,1.1507,3497.2,3497.1,3.40951]
[1735127095356,1.1507,3497.6,3497.1,3.40951]
[1735127095948,0.25,3497.5,3497.1,3.40951]
[1735127096145,1.1507,3497.6,3497.1,0.55]
[1735127096429,1.1507,3497.6,3497.3,2.85934]
[1735127096617,1.1507,3497.6,3497.4,0.55]
[1735127096808,2.4485494,3497.5,3497.4,0.55]
[1735127097007,2.4485494,3497.5,3497.3,2.21633615]
[1735127097416,2.4485494,3497.5,3497.1,0.4542965]
[1735127097417,2.6985494,3497.5,3497.1,0.4542965]
[1735127097623,3.88290994,3497.5,3497.1,2.85949]
[1735127097995,3.63290994,3497.5,3497.2,2.85942]
[1735127098712,1.18436054,3497.3,3497.0,0.8473]
[1735127099022,1.18436054,3497.3,3497.2,2.85943]
[1735127100021,3.13229188,3497.8,3497.0,0.8473]
[1735127100022,1.18436054,3497.6,3497.0,0.8473]
[1735127100225,1.18436054,3497.6,3497.5,2.85918]
[1735127100425,1.18436054,3497.6,3497.2,2.85938]
[1735127100756,0.25,3497.5,3497.2,2.85938]
[1735127100905,0.02723975,3497.4,3497.3,2.85934]
[1735127101106,1.18436054,3497.6,3497.3,2.85934]
[1735127101541,1.72557312,3497.8,3497.4,2.85926]
[1735127101542,0.0272452,3497.5,3497.4,2.85926]
[1735127102041,0.02721904,3497.5,3497.4,2.85924]
[1735127102340,1.18436054,3497.8,3497.4,2.85924]
[1735127102529,1.18436054,3497.8,3497.4,2.8592]
[1735127102731,0.02722993,3497.7,3497.4,2.8592]
[1735127102942,0.25,3497.5,3497.2,0.57001685]
[1735127103242,0.02754952,3497.4,3497.2,0.57001685]
[1735127104035,0.25,3497.5,3497.2,0.57001685]
[1735127104239,0.02756515,3497.3,3497.2,0.57001685]
[1735127104417,0.25,3497.5,3497.2,0.57001685]
[1735127104618,0.02754839,3497.3,3497.2,0.57001685]
[1735127104850,0.25,3497.5,3497.2,0.57001685]
[1735127105318,0.02756246,3497.4,3497.2,0.57001685]
[1735127106337,0.02756246,3497.4,3497.2,0.99771354]
[1735127106543,0.02756246,3497.4,3497.3,2.85934]
[1735127106839,1.18436054,3498.0,3497.5,2.8591]
[1735127106840,1.43436054,3498.0,3497.5,2.8591]
[1735127107043,0.02757871,3497.4,3497.2,0.57001685]
[1735127107339,1.43436054,3497.9,3497.2,0.57001685]
[1735127107538,0.02757128,3497.3,3497.2,0.57001685]
[1735127107744,1.43436054,3497.9,3497.2,3.42944685]
[1735127108040,1.43436054,3497.9,3497.3,2.85934]
[1735127108041,0.02759851,3497.8,3497.3,2.85934]
[1735127108848,0.02759851,3497.8,3497.2,0.57001685]
[1735127109060,0.02759851,3497.8,3497.2,3.42936685]
[1735127109222,0.02759851,3497.8,3497.3,2.85932]
[1735127109555,0.25,3497.9,3497.3,2.85932]
[1735127109705,0.02762742,3497.7,3497.2,0.57001685]
[1735127109913,0.25,3497.6,3497.2,0.57001685]
[1735127111354,0.25,3497.2,3496.7,2.85979]
[1735127111661,0.25,3496.8,3496.2,4.03597091]
[1735127111804,0.25,3496.6,3496.2,1.17574091]
[1735127112008,0.25,3496.8,3496.2,1.83008978]
[1735127112310,0.25,3496.8,3496.5,2.85999]
[1735127112505,0.25,3497.6,3496.5,0.58337124]
[1735127112710,0.25,3497.6,3497.3,2.85931]
[1735127112906,0.25,3497.6,3497.4,2.85924]
[1735127112907,1.75254571,3497.5,3497.4,2.85924]
[1735127114055,0.02697259,3497.5,3497.4,3.695164]
[1735127114228,0.52697259,3497.5,3497.4,4.570264]
[1735127114429,0.5,3497.5,3497.4,4.570264]
[1735127115468,0.5,3497.5,3497.4,5.1386745]
[1735127115970,0.5,3497.5,3497.4,8.1386745]
[1735127116141,0.10999995,3497.5,3497.4,8.1386745]
[1735127116348,1.18471623,3498.4,3497.5,3.55]
[1735127116655,1.43471623,3498.7,3498.3,2.85853]
[1735127116971,1.43471623,3498.7,3498.5,0.8779]
[1735127117175,1.43471623,3498.7,3498.5,3.73619]
[1735127117466,1.18471623,3498.7,3498.6,2.85828]
[1735127117666,1.18471623,3499.1,3498.7,2.85815]
[1735127117840,1.18471623,3499.1,3498.5,0.8779]
[1735127118026,1.18471623,3499.1,3498.7,2.85816]
[1735127118229,1.18471623,3499.1,3498.6,0.55]
[1735127118468,1.18471623,3499.1,3499.0,2.85795]
[1735127118785,1.18471623,3499.4,3499.2,2.85776]
[1735127119569,1.18471623,3499.4,3498.6,0.55]
[1735127119792,1.18471623,3499.4,3499.3,2.85771]
[1735127120327,1.72557312,3499.6,3498.6,0.55]
[1735127120328,0.5,3499.6,3498.6,0.55]
[1735127120573,0.25,3498.6,3498.1,1.17574091]
[1735127120781,0.25,3498.3,3498.1,1.17574091]
[1735127121104,0.25,3498.2,3498.1,1.17574091]
[1735127121278,0.25,3498.2,3497.8,2.90538118]
[1735127121279,0.25,3498.2,3497.8,0.56989908]
[1735127122785,0.25,3497.9,3497.4,2.85925]
[1735127123645,0.25,3497.9,3497.4,3.42972507]
[1735127123845,0.25,3497.9,3497.5,2.85917]
[1735127124581,0.25,3497.9,3497.6,2.85909]
[1735127124909,0.25,3498.0,3497.6,2.85909]
[1735127125385,0.25,3497.9,3497.6,2.85909]
[1735127125591,0.25,3498.0,3497.8,2.85889]
[1735127126199,0.5,3498.2,3497.8,2.85889]
[1735127126412,0.25,3498.0,3497.8,2.85889]
[1735127126603,0.25,3498.3,3498.0,2.8587]
[1735127126903,0.25,3498.5,3498.0,2.85877]
[1735127127057,0.02578742,3498.2,3497.8,1.218789]
[1735127127258,0.25,3498.0,3497.9,3.40885]
[1735127127765,0.5,3498.8,3498.7,2.8582]
[1735127127963,0.02588672,3498.8,3498.5,0.55]
[1735127128203,1.43471623,3499.3,3498.7,0.55]
[1735127128388,1.68471623,3499.3,3499.1,2.85782]
[1735127128601,1.18471623,3499.3,3499.2,2.85779]
[1735127128902,0.25,3499.5,3498.9,0.55]
[1735127129064,0.25,3499.4,3499.2,2.85772]
[1735127129903,0.25,3499.4,3498.7,1.1188213]
[1735127130117,0.25,3499.1,3498.7,0.5688213]
[1735127130302,0.25,3499.1,3498.9,2.85796]
[1735127130601,0.25,3499.1,3498.7,0.5688213]
[1735127130807,0.25,3499.1,3498.9,2.858]
[1735127130993,0.5,3499.1,3498.9,2.858]
[1735127131190,0.5,3499.1,3498.7,0.5688213]
[1735127131365,0.25,3499.1,3499.0,2.85794]
[1735127131889,0.25,3499.3,3498.8,0.98050813]
[1735127132190,0.5,3499.6,3499.5,2.85755]
[1735127132613,0.52664413,3499.6,3499.5,2.85755]
[1735127132818,0.27664413,3499.6,3499.5,2.85755]
[1735127133021,0.02664413,3499.6,3499.5,2.85755]
[1735127133531,0.5,3499.8,3499.5,2.85755]
[1735127134233,0.5,3499.8,3499.6,2.85746]
[1735127134533,0.25,3499.8,3499.7,2.85738]
[1735127135930,0.25,3499.6,3499.5,2.85753]
[1735127136166,0.25,3499.6,3498.8,0.98050813]
[1735127136167,0.25,3499.4,3498.8,0.43050813]
[1735127136345,0.5,3499.4,3499.0,2.85794]
[1735127136633,0.25,3499.2,3499.1,2.85787]
[1735127136841,0.9376,3500.2,3499.6,2.5]
[1735127137025,0.379451,3500.1,3499.6,2.5]
[1735127137330,0.02620407,3500.1,3499.7,2.85735]
[1735127137737,0.9376,3500.2,3499.7,2.85735]
[1735127138131,0.02631451,3500.1,3499.7,2.85735]
[1735127138502,0.9376,3500.6,3499.7,2.85735]
[1735127139010,0.02602292,3500.5,3499.7,2.85735]
[1735127139612,0.02602292,3500.5,3499.9,2.8572]
[1735127140037,0.02602292,3500.5,3499.9,0.53572]
[1735127140264,0.02602292,3500.5,3500.1,2.85704]
[1735127140425,0.02602292,3500.5,3499.9,0.53572]
[1735127140426,0.02602292,3500.5,3499.9,3.39294]
[1735127140828,0.02602292,3500.5,3499.7,2.85738]
[1735127141054,2.85687,3500.4,3499.6,2.5]
[1735127141256,0.06173242,3500.5,3499.6,2.5]
[1735127141257,0.02602292,3500.5,3499.6,2.5]
[1735127141459,0.02733781,3500.3,3499.7,0.55]
[1735127141766,0.9376,3500.6,3500.0,2.8571]
[1735127141929,0.02746711,3500.5,3499.8,3.75038]